bitfinex/quotes_ETHUSD_20250404
["timestamp","ask_amount","ask_price","bid_price","bid_amount"]
[1743737358268,5.513,1796.5,1796.3,5.56699]
[1743737358467,5.513,1796.5,1796.2,5.56727]
[1743737358677,5.513,1796.5,1795.8,5.56842]
[1743737358678,0.784,1796.1,1795.8,5.56842]
[1743737358836,5.512,1796.0,1795.7,5.56884]
[1743737359662,5.512,1796.0,1795.6,5.56915]
[1743737359663,3.0,1795.9,1795.6,5.56915]
[1743737359967,3.0,1795.9,1795.6,11.13815]
[1743737360164,3.0,1795.9,1795.6,11.13805]
[1743737360336,3.0,1795.9,1795.7,5.56885]
[1743737360633,4.407998,1795.9,1795.7,5.56885]
[1743737362189,4.407998,1795.9,1795.7,11.1376]
[1743737362330,3.0,1795.9,1795.7,11.1376]
[1743737363466,3.0,1795.9,1795.7,5.56875]
[1743737364273,3.0,1795.9,1795.7,11.13749]
[1743737366151,3.0,1795.9,1795.7,5.56874]
[1743737366549,3.0,1795.9,1795.7,11.13746]
[1743737369191,3.0,1795.9,1795.8,6.33394]
[1743737369551,6.01,1796.1,1796.0,5.56792]
[1743737369751,11.521,1796.1,1796.0,6.33332]
[1743737369986,5.511,1796.1,1796.0,6.33332]
[1743737371177,5.511,1796.1,1795.9,11.13631]
[1743737371379,6.0621,1796.1,1795.9,11.13631]
[1743737372088,5.511,1796.1,1796.0,5.56792]
[1743737376201,5.51,1796.1,1796.0,5.56792]
[1743737376375,6.01,1796.2,1796.1,5.56761]
[1743737376694,11.519,1796.2,1796.1,5.56761]
[1743737377257,11.519,1796.2,1796.1,6.33301]
[1743737384100,11.519,1796.2,1796.1,5.56761]
[1743737388385,12.2737,1796.2,1796.1,5.56761]
[1743737388717,11.519,1796.2,1796.1,5.56761]
[1743737391521,6.01,1796.2,1796.1,5.56761]
[1743737391845,5.507,1796.2,1796.1,7.237927]
[1743737397901,50.2323,1796.8,1796.2,5.5673]
[1743737398100,50.2323,1796.8,1796.5,5.56633]
[1743737398101,5.506,1796.7,1796.5,5.56633]
[1743737398302,50.2323,1796.8,1796.6,5.56606]
[1743737398608,5.506,1796.7,1796.6,5.56606]
[1743737398928,55.812048,1796.8,1796.6,5.56606]
[1743737399111,5.505,1796.7,1796.6,5.56595]
[1743737400296,50.2323,1796.8,1796.7,5.56575]
[1743737400498,49.47,1796.8,1796.7,5.56575]
[1743737400734,54.975,1796.8,1796.7,5.56575]
[1743737401332,54.975,1796.8,1796.6,5.56595]
[1743737401534,54.975,1796.8,1796.4,6.39]
[1743737401535,68.13590148,1796.8,1796.4,11.13297]
[1743737401892,68.13590148,1796.8,1796.4,5.5664]
[1743737401893,6.38911,1796.7,1796.4,5.5664]
[1743737402097,0.8232,1796.7,1796.5,5.56636]
[1743737402338,6.43030982,1796.7,1796.5,5.56636]
[1743737402500,6.43030982,1796.7,1796.6,5.56606]
[1743737402702,11.99617982,1796.7,1796.3,5.56698]
[1743737402897,11.99617982,1796.7,1796.3,5.56684]
[1743737403100,17.56210982,1796.7,1796.3,5.56684]
[1743737403305,7.32231098,1796.6,1796.3,5.56684]
[1743737403547,10.32078232,1796.6,1796.2,11.13442]
[1743737403731,16.33078232,1796.6,1796.3,5.56697]
[1743737403934,8.19356104,1796.6,1796.4,5.56663]
[1743737404252,7.76621098,1796.6,1796.5,5.56637]
[1743737404450,6.01,1796.6,1796.5,5.56637]
[1743737404647,11.514,1796.6,1796.5,5.56637]
[1743737404850,11.514,1796.6,1796.4,5.56653]
[1743737406742,11.514,1796.6,1796.3,5.56696]
[1743737406943,19.04519713,1796.6,1796.3,5.56696]
[1743737407258,19.86839713,1796.6,1796.3,5.56696]
[1743737407407,19.86839713,1796.6,1796.4,5.56668]
[1743737407408,14.30229713,1796.6,1796.4,5.56668]
[1743737407936,11.514,1796.6,1796.5,5.56637]
[1743737408815,11.514,1796.6,1796.4,6.32135]
[1743737409053,11.514,1796.6,1796.4,5.56655]
[1743737409847,0.8217,1796.5,1796.3,5.56694]
[1743737410641,11.514,1796.6,1796.4,5.56668]
[1743737410849,19.31037213,1796.6,1796.3,5.5669]
[1743737411172,13.74421213,1796.6,1796.3,11.1338]
[1743737411534,13.74421213,1796.6,1796.4,5.56659]
[1743737411726,13.74421213,1796.6,1796.3,5.56688]
[1743737411926,19.31035213,1796.6,1796.3,5.56688]
[1743737412676,19.31035213,1796.6,1796.3,5.56685]
[1743737412964,10.06878649,1796.5,1796.1,11.13499]
[1743737413171,15.63545649,1796.5,1796.1,11.13499]
[1743737413462,10.06878649,1796.5,1796.1,5.56746]
[1743737413664,6.01,1796.6,1796.5,5.56637]
[1743737413829,11.513,1796.6,1796.5,5.56637]
[1743737415067,6.01,1796.6,1796.5,5.56637]
[1743737415375,5.502,1796.6,1796.5,6.32117]
[1743737415576,43.45001,1796.9,1796.8,6.32024]
[1743737415577,1e-05,1796.9,1796.8,6.32024]
[1743737415786,5.50201,1796.9,1796.8,7.56447243]
[1743737415961,5.50201,1796.9,1796.8,7.56447362]
[1743737416137,1e-05,1796.9,1796.8,7.56447362]
[1743737416339,1e-05,1796.9,1796.8,7.508826]
[1743737419291,1e-05,1796.9,1796.8,7.56446994]
[1743737419580,1e-05,1796.9,1796.8,7.56447196]
[1743737420172,1e-05,1796.9,1796.8,7.508826]
[1743737421991,1e-05,1796.9,1796.8,5.56544]
[1743737422793,1e-05,1796.9,1796.7,5.56562]
[1743737422993,5.56585,1796.7,1796.4,5.56658]
[1743737423149,0.8139,1796.5,1796.3,5.56685]
[1743737423488,0.8139,1796.5,1796.3,11.13374]
[1743737423993,0.8139,1796.5,1796.4,5.56668]
[1743737424149,5.5,1796.6,1796.4,5.56653]
[1743737424350,0.8139,1796.7,1796.5,5.56637]
[1743737424564,5.5,1796.6,1796.5,5.56637]
[1743737425381,0.8139,1796.7,1796.5,5.56637]
[1743737425578,0.8139,1796.7,1796.5,11.13274]
[1743737425850,7.24202166,1796.8,1796.6,5.56606]
[1743737426052,5.5,1796.7,1796.6,5.56606]
[1743737426261,5.5,1796.7,1796.5,5.56637]
[1743737427700,5.5,1796.7,1796.4,11.13326]
[1743737428000,5.5,1796.7,1796.4,5.56663]
[1743737428165,5.5,1796.7,1796.4,11.1332]
[1743737428366,8.04537998,1796.7,1796.4,5.56657]
[1743737428571,13.61113998,1796.7,1796.4,11.13312]
[1743737428751,8.04537998,1796.7,1796.4,11.13312]
[1743737429302,8.95124128,1796.6,1796.2,5.56718]
[1743737429473,3.38502128,1796.6,1796.3,5.5668]
[1743737429663,0.33850213,1796.5,1796.3,11.1336]
[1743737429860,3.8139,1796.6,1796.4,5.56668]
[1743737430893,11.95123128,1796.6,1796.3,5.5668]
[1743737431398,6.38502128,1796.6,1796.4,5.56666]
[1743737431602,8.55537998,1796.7,1796.4,5.56658]
[1743737431904,5.499,1796.6,1796.5,5.56625]
[1743737432994,6.73129,1796.6,1796.4,5.56655]
[1743737434495,6.73129,1796.6,1796.5,5.56637]
[1743737434790,5.499,1796.6,1796.5,5.56637]
[1743737437308,5.499,1796.6,1796.4,5.56655]
[1743737437504,5.499,1796.6,1796.1,5.5676]
[1743737437505,6.3805,1796.5,1796.1,5.56736]
[1743737437815,5.56677,1796.4,1796.1,5.56736]
[1743737438167,11.94718,1796.5,1796.1,11.13487]
[1743737438402,8.68223013,1796.5,1796.1,5.56736]
[1743737438591,8.68223013,1796.5,1796.2,5.5672]
[1743737438795,8.68219013,1796.5,1796.2,5.5672]
[1743737438969,14.24874013,1796.5,1796.2,5.5672]
[1743737439297,8.68218013,1796.5,1796.2,5.5672]
[1743737439698,9.00626929,1796.4,1796.0,5.5678]
[1743737439902,12.3654,1796.3,1795.9,5.56811]
[1743737440060,12.3654,1796.3,1795.9,11.13628]
[1743737440061,11.06633,1796.2,1795.9,11.13628]
[1743737440260,5.499,1796.2,1796.0,5.56792]
[1743737440709,12.853,1796.2,1795.8,11.13696]
[1743737440909,18.86299,1796.2,1795.8,11.13696]
[1743737441119,24.43047,1796.2,1795.9,5.56823]
[1743737441630,18.86292,1796.2,1795.9,5.56823]
[1743737442185,13.29544,1796.2,1795.9,5.56808]
[1743737442385,6.897404,1796.1,1795.7,6.37644277]
[1743737442725,6.897404,1796.1,1795.4,5.56952]
[1743737442726,3.0,1795.7,1795.4,5.56966]
[1743737442930,5.499,1795.6,1795.5,5.56936]
[1743737443088,5.499,1795.6,1795.4,5.56978]
[1743737443430,5.499,1795.6,1795.5,6.878448]
[1743737444538,5.499,1795.6,1795.5,6.32147]
[1743737448719,5.499,1795.6,1795.4,5.56965]
[1743737448923,5.499,1795.6,1795.3,0.752]
[1743737448924,11.06821,1795.6,1795.3,0.752]
[1743737449243,11.06821,1795.6,1795.2,5.57036]
[1743737449244,6.35881,1795.2,1794.8,5.57156]
[1743737449466,5.57113,1795.0,1794.6,6.32416]
[1743737449739,13.06357013,1795.0,1794.6,5.57216]
[1743737449926,5.57136,1794.9,1794.6,5.57216]
[1743737450332,5.57175,1794.8,1794.5,5.57251]
[1743737450505,5.57175,1794.8,1794.1,0.05]
[1743737450506,0.7882,1794.3,1794.1,0.05]
[1743737450706,5.5,1794.2,1794.1,0.05]
[1743737450945,11.07351,1794.2,1794.1,0.05]
[1743737451116,20.08351,1794.2,1794.1,0.05]
[1743737451831,5.57522,1793.7,1793.2,0.752]
[1743737452033,5.57603,1793.4,1793.1,0.05]
[1743737452232,11.58612,1793.4,1793.1,0.05]
[1743737452534,11.58612,1793.4,1793.2,0.12687022]
[1743737452535,8.14762128,1793.3,1793.2,0.12687022]
[1743737452706,14.94582128,1793.3,1793.2,0.12687022]
[1743737452907,14.94582128,1793.3,1793.1,0.05]
[1743737452908,16.99801541,1793.3,1793.1,0.05]
[1743737453113,16.99801541,1793.3,1793.2,0.11398377]
[1743737453316,22.50001541,1793.3,1793.2,0.11398377]
[1743737453523,22.50001541,1793.3,1793.1,0.05]
[1743737453847,19.92889413,1793.3,1793.2,0.20830632]
[1743737454349,20.34160656,1793.3,1793.1,0.05]
[1743737454509,20.34160656,1793.3,1793.2,0.20830632]
[1743737454849,20.34160656,1793.3,1793.1,0.05]
[1743737455050,7.21091243,1793.3,1793.1,0.05]
[1743737455359,5.501,1793.2,1793.1,0.05]
[1743737456216,5.503,1793.2,1793.1,5.62662]
[1743737456562,11.07962,1793.2,1793.1,0.05]
[1743737456730,13.38801344,1793.2,1793.1,0.05]
[1743737457332,13.93801344,1793.2,1793.1,0.05]
[1743737457848,5.503,1793.5,1793.1,0.05]
[1743737458155,5.503,1793.5,1793.4,5.576]
[1743737458455,5.503,1793.5,1793.4,6.4071]
[1743737458861,6.01,1793.8,1793.7,5.57506]
[1743737459068,5.503,1793.8,1793.7,5.57506]
[1743737462460,6.01,1794.4,1794.3,5.5732]
[1743737462672,3.0,1794.6,1794.4,5.5728]
[1743737462965,3.0,1794.6,1794.3,5.5732]
[1743737463456,5.504,1794.5,1794.3,5.5732]
[1743737463821,6.3544,1794.5,1794.2,5.57348]
[1743737464021,5.57335,1794.3,1793.9,5.57436]
[1743737464268,5.57363,1794.2,1793.9,5.57436]
[1743737464571,5.504,1794.1,1793.9,5.57433]
[1743737464770,5.504,1794.1,1794.0,5.57413]
[1743737466062,5.504,1794.1,1793.9,11.14864]
[1743737466063,5.504,1794.1,1793.9,5.57431]
[1743737466221,5.504,1794.1,1793.8,6.4058]
[1743737466222,5.504,1794.1,1793.8,5.5747]
[1743737466422,5.504,1794.1,1793.7,5.57501]
[1743737466423,5.504,1794.1,1793.7,5.57505]
[1743737466623,5.504,1794.1,1793.6,0.8311]
[1743737466624,1.337,1794.0,1793.4,6.40705]
[1743737466868,5.5753,1793.7,1793.3,5.57623]
[1743737467158,17.44156,1793.6,1793.4,0.20839937]
[1743737467364,7.754156,1793.5,1793.2,5.57659]
[1743737467519,13.329946,1793.5,1793.4,0.20839937]
[1743737467724,18.905876,1793.5,1793.3,0.20922138]
[1743737468052,13.0428676,1793.4,1793.1,0.05]
[1743737468366,0.817,1793.2,1793.1,0.05]
[1743737468518,17.90862,1793.2,1793.1,0.05]
[1743737468959,12.332,1793.2,1793.1,0.05]
[1743737471169,12.332,1793.2,1793.1,5.62693]
[1743737471370,11.515,1793.2,1793.1,5.62693]
[1743737471676,5.505,1793.2,1793.1,6.74733]
[1743737471881,5.505,1793.2,1793.1,7.52533]
[1743737472462,6.01,1793.8,1793.7,5.57506]
[1743737472636,5.505,1793.8,1793.1,1.9484]
[1743737472823,11.0071,1793.8,1793.5,5.57555]
[1743737473022,17.0171,1793.8,1793.5,5.57555]
[1743737473221,17.0171,1793.8,1793.4,5.57596]
[1743737473222,5.57508,1793.7,1793.4,5.57596]
[1743737473467,17.0171,1793.8,1793.5,5.57562]
[1743737473673,6.01,1793.8,1793.7,5.57506]
[1743737473978,1.3674,1794.0,1793.9,5.57444]
[1743737473979,11.515,1794.0,1793.9,5.57444]
[1743737474267,11.515,1794.0,1793.8,5.57475]
[1743737474651,11.515,1794.0,1793.7,11.14987]
[1743737474855,11.515,1794.0,1793.9,0.15620378]
[1743737475041,11.515,1794.0,1793.7,11.1498]
[1743737475367,11.515,1794.0,1793.9,0.15620378]
[1743737475550,11.515,1794.0,1793.8,0.15681995]
[1743737475752,11.515,1794.0,1793.9,0.15620378]
[1743737475952,18.798016,1794.0,1793.9,0.15620378]
[1743737476158,18.798016,1794.0,1793.6,11.15056]
[1743737476478,18.798016,1794.0,1793.7,0.12594894]
[1743737476771,18.798016,1794.0,1793.6,11.30676818]
[1743737477072,11.515,1794.0,1793.7,5.73082417]
[1743737477373,11.515,1794.0,1793.7,5.57487]
[1743737477737,11.515,1794.0,1793.7,5.73083417]
[1743737477934,17.08918,1794.0,1793.7,5.73083417]
[1743737478287,5.57457,1793.9,1793.7,0.15596417]
[1743737478433,12.858218,1793.9,1793.7,0.15596417]
[1743737478634,12.858218,1793.9,1793.5,5.57564]
[1743737478828,18.868148,1793.9,1793.7,0.15596417]
[1743737479060,14.110488,1793.9,1793.5,11.15109]
[1743737479259,14.110488,1793.9,1793.7,0.15596417]
[1743737479491,14.110488,1793.9,1793.5,5.57554]
[1743737479656,14.110488,1793.9,1793.7,0.15596417]
[1743737479938,8.535918,1793.9,1793.6,5.73180047]
[1743737480137,8.535918,1793.9,1793.7,0.12477133]
[1743737480138,11.14995,1793.8,1793.7,0.12477133]
[1743737480333,20.70995,1793.8,1793.7,0.12477133]
[1743737480536,5.57662,1793.2,1793.1,0.05]
[1743737480751,17.09162,1793.2,1793.1,0.05]
[1743737480973,11.515,1793.2,1793.1,0.05]
[1743737482566,17.09162,1793.2,1793.1,0.05]
[1743737482775,17.61636236,1793.2,1792.1,0.05]
[1743737482945,17.61636236,1793.2,1792.1,5.62999]
[1743737482946,5.57868,1792.6,1792.1,5.62999]
[1743737483150,11.09292,1792.5,1792.1,5.62999]
[1743737483473,11.15847,1792.4,1792.1,0.05]
[1743737483784,12.40494,1792.3,1792.1,0.05]
[1743737483937,6.820224,1792.2,1792.1,0.05]
[1743737484269,12.830224,1792.2,1792.1,0.05]
[1743737485275,6.01,1792.2,1792.1,0.05]
[1743737485478,17.10773,1792.2,1792.1,0.05]
[1743737485852,20.10773,1792.2,1792.1,0.05]
[1743737486791,20.92303,1792.2,1792.1,0.05]
[1743737488001,9.8253,1792.2,1792.1,0.05]
[1743737488155,11.529,1792.2,1792.1,0.05]
[1743737488355,6.01,1792.2,1792.1,0.05]
[1743737488651,17.10973,1792.2,1792.1,0.05]
[1743737488850,18.820703,1792.2,1792.1,0.05]
[1743737489292,21.820703,1792.2,1792.1,0.05]
[1743737489523,35.39147397,1792.2,1792.1,0.05]
[1743737489705,0.8153,1791.7,1790.9,0.7841]
[1743737489905,5.58248,1791.4,1790.9,6.36784]
[1743737490055,5.58286,1791.2,1791.0,0.13175518]
[1743737490256,11.576,1791.1,1790.8,5.58407]
[1743737490559,11.576,1791.1,1791.0,5.58347]
[1743737490955,11.576,1791.1,1791.0,5.71522518]
[1743737492093,11.576,1791.1,1791.0,0.13175518]
[1743737493694,12.77576378,1791.1,1791.0,0.13175518]
[1743737494028,5.58388,1790.9,1790.6,0.7841]
[1743737494309,5.58388,1790.9,1790.4,5.58531]
[1743737494310,6.01,1790.8,1790.7,0.13323893]
[1743737494670,6.01,1790.8,1790.5,5.5849]
[1743737494869,5.563,1790.7,1790.6,5.64028857]
[1743737495105,6.01,1790.8,1790.7,5.5844]
[1743737495411,11.576,1790.8,1790.7,5.5844]
[1743737495906,5.566,1790.8,1790.7,5.5844]
[1743737496468,11.576,1790.8,1790.5,5.58501]
[1743737496686,11.576,1790.8,1790.5,11.16986]
[1743737496885,13.291997,1790.8,1790.5,11.16986]
[1743737497082,13.291997,1790.8,1790.3,5.58549]
[1743737497083,5.58472,1790.6,1790.3,5.58549]
[1743737497314,5.58472,1790.6,1790.2,11.17173]
[1743737497315,6.01,1790.5,1790.2,11.17173]
[1743737497498,5.574,1790.4,1790.3,5.58565]
[1743737498218,6.01,1790.5,1790.4,5.58534]
[1743737498428,6.01,1790.5,1790.4,6.40544]
[1743737498785,6.01,1790.5,1790.4,6.46128765]
[1743737499392,6.01,1790.5,1790.4,6.46128766]
[1743737499731,5.573,1790.6,1790.5,5.58503]
[1743737501811,6.1303,1790.6,1790.3,5.58561]
[1743737502040,11.71533,1790.6,1790.2,6.36825]
[1743737502187,17.18041,1790.5,1790.1,5.63625]
[1743737502389,5.58566,1790.3,1790.1,0.05]
[1743737502638,12.524726,1790.2,1790.1,0.05]
[1743737503016,18.534726,1790.2,1790.1,0.05]
[1743737503190,22.45118074,1790.2,1790.1,0.16538483]
[1743737503390,23.00118074,1790.2,1790.1,0.05]
[1743737503626,11.17489,1789.8,1789.4,5.58842]
[1743737503828,11.557,1789.7,1789.4,5.58842]
[1743737504036,22.7323,1789.7,1789.5,0.11786065]
[1743737504216,17.14455,1789.7,1789.5,0.11786065]
[1743737504583,5.58803,1789.6,1789.2,5.58908]
[1743737504737,5.58803,1789.6,1789.2,5.5889]
[1743737504933,5.58858,1789.4,1789.1,0.05]
[1743737505096,11.582,1789.3,1789.1,0.05]
[1743737505293,5.96,1789.3,1789.2,5.58909]
[1743737505503,11.582,1789.3,1789.1,5.63929]
[1743737505710,11.582,1789.3,1789.2,5.71192519]
[1743737505933,5.96,1789.3,1789.2,5.71192519]
[1743737506135,11.582,1789.3,1789.2,5.71192519]
[1743737506436,18.32897,1789.3,1789.2,0.12283519]
[1743737506734,5.58909,1789.2,1789.1,0.05]
[1743737506936,19.12517,1789.3,1789.1,0.05]
[1743737507137,13.5364,1789.3,1789.1,0.05]
[1743737507342,11.582,1789.3,1789.1,5.63924]
[1743737507993,11.582,1789.3,1789.1,0.05]
[1743737508847,11.582,1789.3,1789.1,5.6392]
[1743737509046,11.582,1789.3,1789.1,11.22846]
[1743737509236,11.582,1789.3,1789.1,5.6392]
[1743737509945,11.582,1789.3,1789.1,0.05]
[1743737510102,5.58909,1789.2,1789.1,0.05]
[1743737510302,13.3202339,1789.2,1789.1,0.05]
[1743737511249,12.7702339,1789.2,1789.1,0.05]
[1743737511549,13.3202339,1789.2,1789.1,0.05]
[1743737512081,16.3202339,1789.2,1789.1,0.05]
[1743737512251,21.04529306,1789.2,1789.1,0.05]
[1743737512452,5.59088,1788.7,1788.3,5.59181]
[1743737512651,17.16797,1788.6,1788.4,0.12305459]
[1743737512856,17.16797,1788.6,1787.9,5.59302]
[1743737512857,12.05127,1788.5,1787.9,5.59302]
[1743737513024,5.91,1788.5,1788.2,5.59216]
[1743737513216,5.91,1788.5,1788.4,5.59159]
[1743737513416,5.91,1788.5,1788.4,5.7159086]
[1743737513654,5.91,1788.5,1788.4,0.1243186]
[1743737513859,7.0677,1788.5,1788.4,0.1243186]
[1743737514026,7.0677,1788.5,1788.1,0.05]
[1743737514229,12.6591,1788.5,1788.1,5.64232]
[1743737514577,5.91,1788.4,1788.1,0.05]
[1743737514759,5.59221,1788.2,1788.1,0.05]
[1743737514961,13.433134,1788.2,1788.1,0.05]
[1743737515256,11.665,1788.2,1788.1,0.05]
[1743737515431,11.665,1788.2,1788.1,5.64252]
[1743737515956,5.755,1788.2,1788.1,5.64252]
[1743737516861,5.755,1788.2,1788.1,5.69843944]
[1743737517154,5.755,1788.2,1788.1,5.64252]
[1743737517561,5.755,1788.2,1788.1,5.69843945]
[1743737517715,5.755,1788.2,1788.1,6.9045364]
[1743737517912,49.517,1788.7,1788.1,6.9045364]
[1743737518116,0.88377423,1789.0,1788.9,5.59002]
[1743737518117,5.765,1789.0,1788.9,5.59002]
[1743737518317,5.91,1789.1,1789.0,5.58971]
[1743737518766,5.772,1789.4,1789.2,5.5888]
[1743737518913,5.772,1789.4,1789.3,5.58877]
[1743737520542,49.538,1789.5,1789.4,5.58846]
[1743737520743,49.538,1789.5,1789.3,5.58864]
[1743737520958,53.07295739,1789.5,1789.0,0.7699]
[1743737521157,6.35547,1789.4,1789.0,11.17921]
[1743737521324,5.775,1789.3,1789.0,5.5895]
[1743737521755,5.775,1789.3,1789.1,5.58927]
[1743737521968,5.775,1789.3,1789.2,5.58909]
[1743737524270,11.94141,1789.3,1788.8,5.59003]
[1743737524561,6.677,1789.2,1788.8,5.59019]
[1743737524772,12.26624,1789.2,1788.8,5.59019]
[1743737524949,12.0494,1789.1,1788.4,0.7699]
[1743737525274,5.91,1789.0,1788.7,5.59051]
[1743737525569,5.91,1789.0,1788.8,5.59033]
[1743737525570,5.771,1788.9,1788.8,5.59033]
[1743737525860,5.91,1789.0,1788.8,5.59033]
[1743737526062,5.772,1788.9,1788.8,5.59033]
[1743737528284,5.91,1789.2,1789.1,5.5894]
[1743737528446,11.678,1789.2,1789.1,5.5894]
[1743737528855,5.91,1789.2,1789.1,5.64529149]
[1743737529071,5.91,1789.2,1789.1,5.5894]
[1743737530171,43.628,1789.5,1789.4,5.58846]
[1743737530575,43.628,1789.5,1789.3,11.17725]
[1743737530896,43.628,1789.5,1789.4,5.58846]
[1743737531087,43.628,1789.5,1789.4,7.01303504]
[1743737531438,5.91,1789.7,1789.6,5.58784]
[1743737531644,5.91,1789.7,1789.5,5.588]
[1743737531844,5.91,1789.7,1789.6,5.58784]
[1743737532785,5.91,1789.7,1789.3,5.58865]
[1743737532786,11.49774,1789.7,1789.3,5.58865]
[1743737533098,0.591,1789.6,1789.5,5.58815]
[1743737533266,5.91,1789.7,1789.5,11.1763]
[1743737533464,5.91,1789.7,1789.5,5.58815]
[1743737533662,11.49775,1789.7,1789.3,5.58867]
[1743737533862,5.91,1789.7,1789.4,5.58828]
[1743737534286,17.08533,1789.7,1789.3,5.58875]
[1743737534485,13.783483,1789.7,1789.3,5.58862]
[1743737534702,8.195933,1789.7,1789.5,5.58797]
[1743737534903,5.91,1789.7,1789.6,5.58784]
[1743737535104,11.685,1789.7,1789.5,5.58797]
[1743737535306,17.27267,1789.7,1789.4,5.5884]
[1743737535605,0.7893,1789.6,1789.4,11.1767]
[1743737535805,0.7893,1789.6,1789.3,5.58866]
[1743737535999,13.53468,1789.6,1789.2,5.58882]
[1743737536211,5.58859,1789.4,1789.0,6.34996]
[1743737536381,11.688,1789.3,1789.0,5.58958]
[1743737536704,17.27678,1789.3,1789.0,5.58958]
[1743737537004,17.27678,1789.3,1789.0,5.58956]
[1743737537167,11.688,1789.3,1789.1,5.58922]
[1743737537372,13.415659,1789.3,1789.0,5.58969]
[1743737537571,5.58976,1789.0,1788.7,5.59061]
[1743737537783,11.701,1788.9,1788.6,5.5909]
[1743737537985,5.59034,1788.8,1788.5,5.59123]
[1743737538283,5.91,1788.8,1788.6,5.59094]
[1743737538809,5.91,1788.8,1788.6,11.18175]
[1743737538996,5.91,1788.8,1788.7,5.59065]
[1743737539907,5.91,1789.1,1789.0,5.58971]
[1743737540068,43.623,1789.3,1789.2,5.58909]
[1743737540267,5.91,1789.4,1789.3,5.58877]
[1743737540496,5.91,1789.4,1789.3,6.34907]
[1743737541107,5.91,1789.4,1789.3,5.58877]
[1743737543533,7.0803,1789.4,1789.3,5.58877]
[1743737543826,5.91,1789.4,1789.3,5.58877]
[1743737544736,5.91,1789.9,1789.8,5.58721]
[1743737546039,43.627,1790.0,1789.9,5.5869]
[1743737551304,0.7984,1789.9,1789.6,5.58773]
[1743737551501,5.58761,1789.7,1789.2,6.35261]
[1743737551802,3.7984,1789.5,1788.9,0.7638]
[1743737552000,3.7984,1789.5,1788.7,1.677229]
[1743737552001,8.58897,1789.3,1788.8,5.59018]
[1743737552215,11.38826,1789.2,1788.7,6.35439]
[1743737552419,0.7984,1789.1,1788.5,0.7638]
[1743737552620,0.7984,1789.1,1788.9,5.58991]
[1743737553003,5.799,1789.2,1788.9,5.58991]
[1743737553226,5.799,1789.2,1789.1,5.5894]
[1743737556048,5.799,1789.2,1788.9,11.94362]
[1743737556545,5.799,1789.2,1788.7,5.59037]
[1743737556546,5.58947,1789.1,1788.7,5.59037]
[1743737556746,5.59013,1788.9,1788.5,5.59116]
[1743737557056,17.850363,1788.8,1788.5,5.59104]
[1743737557420,12.260013,1788.8,1788.5,5.59104]
[1743737557956,17.850403,1788.8,1788.5,5.59104]
[1743737558160,5.59074,1788.7,1788.3,6.35566]
[1743737558455,12.9666403,1788.7,1788.3,6.3556]
[1743737558758,17.850393,1788.8,1788.4,5.59148]
[1743737559063,17.850393,1788.8,1788.5,5.59121]
[1743737559227,12.260013,1788.8,1788.6,5.59093]
[1743737560056,12.260013,1788.8,1788.5,5.59121]
[1743737560057,17.850493,1788.8,1788.5,5.59121]
[1743737560239,12.260013,1788.8,1788.5,5.59115]
[1743737560541,18.27320195,1788.8,1788.4,5.59142]
[1743737560859,7.4180202,1788.7,1788.4,5.59142]
[1743737561023,12.68272195,1788.8,1788.5,5.59126]
[1743737561219,12.68272195,1788.8,1788.6,5.59081]
[1743737561436,12.68272195,1788.8,1788.6,11.18162]
[1743737561636,12.68272195,1788.8,1788.6,5.59081]
[1743737562060,18.27306195,1788.8,1788.4,5.59156]
[1743737562264,6.37647,1788.6,1788.2,5.59217]
[1743737562463,3.7853,1788.6,1788.1,0.05]
[1743737562664,5.91,1788.5,1788.4,5.59159]
[1743737563223,5.91,1788.5,1788.3,11.18354]
[1743737563429,5.91,1788.5,1788.3,11.1835]
[1743737564366,5.91,1788.5,1788.2,11.1842]
[1743737564526,5.77,1788.4,1788.2,5.59205]
[1743737564937,5.59209,1788.3,1788.1,0.05]
[1743737565137,5.91,1788.2,1788.1,0.05]
[1743737565342,5.91,1788.2,1788.1,0.25903915]
[1743737565641,14.50221,1788.2,1788.1,0.20677936]
[1743737565836,17.33798,1788.2,1788.1,0.20677936]
[1743737566040,55.37877,1788.2,1788.1,0.20677936]
[1743737566279,49.543,1788.2,1788.1,5.79929936]
[1743737567475,43.633,1788.2,1788.1,5.79929936]
[1743737570173,5.91,1788.5,1788.4,5.59159]
[1743737570374,5.91,1788.9,1788.8,5.59033]
[1743737570571,5.91,1789.3,1789.2,5.58909]
[1743737570888,5.781,1789.5,1789.4,5.58846]
[1743737571070,11.691,1789.5,1789.4,5.58846]
[1743737571588,5.781,1789.5,1789.4,5.58846]
[1743737571992,5.91,1789.7,1789.6,5.58784]
[1743737576862,0.7696,1789.6,1789.3,5.58866]
[1743737577067,3.7696,1789.6,1788.8,0.7522]
[1743737577291,3.0,1789.4,1789.2,11.17814]
[1743737577484,5.762,1789.3,1789.2,11.17814]
[1743737579288,5.762,1789.3,1789.2,5.58907]
[1743737579578,6.9292,1789.3,1789.1,11.17858]
[1743737579840,6.9292,1789.3,1789.2,5.58909]